bitfinex/quotes_SOLUSD_20250630
["timestamp","ask_amount","ask_price","bid_price","bid_amount"]
[1751325894333,0.1,155.72,155.71,3.24541972]
[1751325898767,6.52178268,155.72,155.71,0.2]
[1751325899057,0.1,155.72,155.71,0.2]
[1751325899650,6.52178268,155.72,155.71,0.2]
[1751325900047,10.78140647,155.72,155.71,0.2]
[1751325900246,6.52178268,155.72,155.71,0.2]
[1751325901037,0.1,155.72,155.71,21.89506858]
[1751325907142,0.1,155.72,155.71,3.24541972]
[1751325908058,6.52178268,155.72,155.71,3.24541972]
[1751325908240,6.52178268,155.72,155.71,0.2]
[1751325908442,40.92603164,155.72,155.71,0.2]
[1751325909843,37.88061192,155.72,155.71,0.2]
[1751325913074,36.79356595,155.72,155.71,0.2]
[1751325914248,10.77356595,155.72,155.71,0.2]
[1751325916866,4.35178327,155.72,155.71,0.2]
[1751325917168,0.1,155.72,155.71,0.2]
[1751325934373,6.52178268,155.72,155.71,0.2]
[1751325934574,10.65424837,155.72,155.71,0.2]
[1751325934877,15.16412717,155.72,155.71,0.2]
[1751325935081,19.97447619,155.72,155.71,0.2]
[1751325944892,26.0,155.7,155.69,0.2]
[1751325945100,67.11496066,155.7,155.69,0.2]
[1751325945276,61.10507939,155.7,155.69,0.2]
[1751325946296,67.52768696,155.7,155.69,0.2]
[1751325947198,79.70936584,155.7,155.69,0.2]
[1751325947707,0.42648471,155.69,155.68,0.2]
[1751325948002,20.46393233,155.69,155.68,0.2]
[1751325948376,26.88695243,155.69,155.68,0.2]
[1751325948585,26.42648471,155.66,155.62,6.66]
[1751325948793,61.10528569,155.66,155.62,6.66]
[1751325949501,61.07496363,155.66,155.62,6.66]
[1751325949892,67.49922162,155.66,155.62,6.66]
[1751325950095,0.42648471,155.65,155.62,6.66]
[1751325950274,8.28225345,155.65,155.62,6.66]
[1751325951902,16.42614007,155.65,155.62,6.66]
[1751325952309,26.42648471,155.62,155.61,0.2]
[1751325952599,57.21112032,155.62,155.61,0.2]
[1751325953178,58.01435897,155.62,155.61,0.2]
[1751325953606,64.44026823,155.62,155.61,0.2]
[1751325961509,64.44026823,155.62,155.61,0.2]
[1751325972626,37.19054487,155.62,155.61,0.2]
[1751325972831,63.23054487,155.62,155.61,0.2]
[1751325972996,6.42590926,155.62,155.61,0.2]
[1751325973199,33.26914791,155.62,155.61,0.2]
[1751325973444,7.22914791,155.62,155.61,0.2]
[1751325973603,33.26914791,155.62,155.61,0.2]
[1751325973923,33.41130948,155.62,155.61,0.2]
[1751325974216,33.69563262,155.62,155.61,0.2]
[1751325977821,36.74430367,155.62,155.61,0.2]
[1751325979424,33.69563262,155.62,155.61,0.2]
[1751325979720,36.74430367,155.62,155.61,0.2]
[1751325982610,10.70430367,155.62,155.61,0.2]
[1751325982910,36.74430367,155.62,155.61,0.2]
[1751325990132,41.54394394,155.62,155.61,0.2]
[1751325998542,36.74430367,155.62,155.61,0.2]
[1751325998728,41.55271708,155.62,155.61,0.2]
[1751326004237,38.50404603,155.62,155.61,0.2]
[1751326004449,15.51271708,155.62,155.61,0.2]
[1751326004739,36.74430367,155.62,155.61,0.2]
[1751326004949,41.55271708,155.62,155.61,0.2]
[1751326007730,41.51271708,155.62,155.61,0.2]
[1751326007936,67.55271708,155.62,155.61,0.2]
[1751326009826,41.51271708,155.62,155.61,0.2]
[1751326010026,67.55271708,155.62,155.61,0.2]
[1751326011348,38.46404603,155.62,155.61,0.2]
[1751326011552,64.48404603,155.62,155.61,0.2]
[1751326011856,67.53271708,155.62,155.61,0.2]
[1751326012641,41.51271708,155.62,155.61,0.2]
[1751326012936,67.53271708,155.62,155.61,0.2]
[1751326019346,41.51271708,155.62,155.61,0.2]
[1751326044681,38.46404603,155.62,155.61,0.2]
[1751326044982,41.51271708,155.62,155.61,0.2]
[1751326046962,12.32188446,155.62,155.61,0.2]
[1751326047176,6.7102324,155.62,155.61,0.2]
[1751326047569,32.44590926,155.62,155.61,0.2]
[1751326047769,42.73255545,155.62,155.61,0.2]
[1751326047978,42.59039388,155.62,155.61,0.2]
[1751326048290,16.71255545,155.62,155.61,0.2]
[1751326048468,11.90414204,155.62,155.61,0.2]
[1751326049391,31.49823278,155.62,155.61,0.2]
[1751326049577,37.92414204,155.62,155.61,0.2]
[1751326050169,5.19390964,155.62,155.61,28.31991991]
[1751326050459,5.19390964,155.62,155.61,36.38994212]
[1751326050681,5.19390964,155.62,155.61,26.91494886]
[1751326051097,5.19390964,155.62,155.61,36.38994212]
[1751326051881,5.19390964,155.62,155.61,29.96361991]
[1751326052673,5.19390964,155.62,155.61,31.93124886]
[1751326063206,5.19390964,155.62,155.61,25.50964886]
[1751326064399,14.95281309,155.62,155.61,25.50964886]
[1751326065823,15.09497466,155.62,155.61,25.50964886]
[1751326069316,14.95281309,155.62,155.61,25.50964886]
[1751326069614,11.90414204,155.62,155.61,25.50964886]
[1751326069808,14.95281309,155.62,155.61,25.50964886]
[1751326072615,5.47823278,155.62,155.61,25.50964886]
[1751326075798,31.47823278,155.62,155.61,25.50964886]
[1751326076187,5.47823278,155.62,155.61,25.50964886]
[1751326076381,31.47823278,155.62,155.61,25.50964886]
[1751326078721,5.47823278,155.62,155.61,25.50964886]
[1751326078913,31.47823278,155.62,155.61,25.50964886]
[1751326081018,40.95281309,155.62,155.61,25.50964886]
[1751326084320,40.95281309,155.62,155.61,0.2]
[1751326094415,45.75599071,155.62,155.61,0.2]
[1751326099242,42.70731966,155.62,155.61,0.2]
[1751326099445,40.95281309,155.62,155.61,0.2]
[1751326101950,45.89952979,155.62,155.61,0.2]
[1751326103143,5.19390964,155.62,155.61,0.2]
[1751326103746,34.24258069,155.62,155.61,0.2]
[1751326104128,31.19390964,155.62,155.61,0.2]
[1751326106247,37.6198189,155.62,155.61,0.2]
[1751326106752,31.19390964,155.62,155.61,0.2]
[1751326107535,11.6198189,155.62,155.61,0.2]
[1751326107736,37.6198189,155.62,155.61,0.2]
[1751326108650,40.95281309,155.62,155.61,0.2]
[1751326108851,45.75992871,155.62,155.61,0.2]
[1751326114247,40.95281309,155.62,155.61,0.2]
[1751326118151,37.90414204,155.62,155.61,0.2]
[1751326119839,5.19390964,155.62,155.61,0.2]
[1751326120048,5.19390964,155.62,155.61,18.84964886]
[1751326120641,5.19390964,155.62,155.61,0.2]
[1751326122060,5.19390964,155.62,155.61,9.78177105]
[1751326123553,5.19390964,155.62,155.61,16.20809326]
[1751326123759,5.19390964,155.62,155.61,17.91991025]
[1751326123962,5.19390964,155.62,155.61,11.49358804]
[1751326131048,5.19390964,155.62,155.61,30.1432369]
[1751326132480,5.19390964,155.62,155.61,18.84964886]
[1751326136275,5.19390964,155.62,155.61,23.6101369]
[1751326136576,5.19390964,155.62,155.61,18.84964886]
[1751326137073,5.19390964,155.62,155.61,25.48964886]
[1751326140655,5.19390964,155.62,155.61,30.2501369]
[1751326143975,5.19390964,155.62,155.61,28.53701878]
[1751326144177,5.19390964,155.62,155.61,25.48964886]
[1751326151866,8.08519993,155.69,155.62,18.64964886]
[1751326152084,8.08519993,155.69,155.67,18.64964886]
[1751326152085,11.23074334,155.69,155.67,18.64964886]
[1751326152386,10.81842975,155.69,155.67,18.64964886]
[1751326152694,13.86579967,155.69,155.65,3.04736992]
[1751326153285,13.86579967,155.69,155.65,18.64964886]
[1751326154792,6.42384531,155.67,155.65,18.64964886]
[1751326155594,6.42384531,155.67,155.63,21.69701878]
[1751326155909,9.47121523,155.67,155.63,21.69701878]
[1751326156393,6.42384531,155.67,155.63,21.69701878]
[1751326158975,6.42358949,155.68,155.65,18.64964886]
[1751326162606,9.47095941,155.68,155.65,18.64964886]
[1751326165703,6.42358949,155.68,155.65,18.64964886]
[1751326168001,9.47095941,155.68,155.65,18.64964886]
[1751326169097,39.84568545,155.69,155.65,18.64964886]
[1751326169698,39.84568545,155.69,155.65,21.69701878]
[1751326171204,36.79831553,155.69,155.65,21.69701878]
[1751326171706,39.84568545,155.69,155.65,21.69701878]
[1751326171908,39.84568545,155.69,155.65,18.64964886]
[1751326172294,39.84557524,155.69,155.65,18.64964886]
[1751326174191,13.86557524,155.69,155.65,18.64964886]
[1751326174397,39.84557524,155.69,155.65,18.64964886]
[1751326176803,36.79820532,155.69,155.65,18.64964886]
[1751326177008,4.39512982,155.69,155.65,28.12165807]
[1751326179994,4.39512982,155.69,155.67,18.64964886]
[1751326180194,4.39512982,155.69,155.67,21.69701878]
[1751326182418,152.62278571,155.7,155.66,21.69701878]
[1751326186816,152.62278571,155.7,155.67,6.64]
[1751326188692,155.67015563,155.7,155.67,6.64]
[1751326189799,4.39345672,155.68,155.67,25.28964886]
[1751326190113,7.44082664,155.68,155.67,25.28964886]
[1751326190697,13.86425932,155.68,155.67,25.28964886]
[1751326198319,7.44082664,155.68,155.67,25.28964886]
[1751326198805,13.86425932,155.68,155.67,25.28964886]
[1751326203734,4.39345672,155.68,155.67,25.28964886]
[1751326204130,4.39345672,155.68,155.67,28.33701878]
[1751326204634,4.39345672,155.68,155.67,25.28964886]
[1751326208862,4.59345672,155.68,155.67,25.28964886]
[1751326209055,4.59345672,155.68,155.67,28.33701878]
[1751326212201,4.59345672,155.68,155.67,25.28964886]
[1751326214076,4.59345672,155.68,155.67,34.76086409]
[1751326217599,4.59345672,155.68,155.67,28.33701878]
[1751326234628,4.59345672,155.68,155.67,25.28964886]
[1751326234932,0.42648471,155.67,155.62,18.74964886]
[1751326235228,3.04736992,155.63,155.62,0.1]
[1751326235832,3.04736992,155.63,155.62,18.74964886]
[1751326236808,9.47286628,155.63,155.62,18.74964886]
[1751326238534,9.89935099,155.63,155.62,18.74964886]
[1751326239835,11.40145099,155.63,155.62,18.74964886]
[1751326244448,11.40145099,155.63,155.62,0.1]
[1751326244830,26.42648471,155.6,155.59,0.2]
[1751326245036,68.42667621,155.6,155.59,0.2]
[1751326246654,62.66393174,155.6,155.59,0.2]
[1751326247149,74.85341142,155.6,155.59,0.2]
[1751326250662,62.66393174,155.6,155.59,0.2]
[1751326253578,56.09503496,155.6,155.59,0.2]
[1751326253762,56.23719653,155.6,155.59,0.2]
[1751326254352,62.66393174,155.6,155.59,0.2]
[1751326257178,74.85341142,155.6,155.59,0.2]
[1751326260974,62.66393174,155.6,155.59,0.2]
[1751326263383,33.65656182,155.6,155.59,0.2]
[1751326263586,62.68393174,155.6,155.59,0.2]
[1751326266469,26.26432314,155.6,155.59,0.2]
[1751326266666,10.27744703,155.6,155.59,0.2]
[1751326266969,35.5962667,155.6,155.59,0.2]
[1751326267168,9.75842827,155.6,155.59,0.2]
[1751326267390,35.73842827,155.6,155.59,0.2]
[1751326267901,37.45608701,155.6,155.59,0.2]
[1751326268699,11.47608701,155.6,155.59,0.2]
[1751326268867,37.45608701,155.6,155.59,0.2]
[1751326272403,42.36327724,155.6,155.59,0.2]
[1751326274275,42.36327724,155.6,155.56,18.34964886]
[1751326274276,26.0,155.57,155.56,18.34964886]
[1751326274474,57.0093518,155.57,155.56,18.34964886]
[1751326275283,57.15151337,155.57,155.55,6.84]
[1751326275477,5.56857713,155.56,155.55,6.84]
[1751326276388,11.99696489,155.56,155.55,25.48964886]
[1751326276788,16.28302223,155.56,155.55,25.48964886]
[1751326279575,16.70950694,155.56,155.55,6.84]
[1751326287300,16.70950694,155.56,155.55,0.2]
[1751326287907,21.51198104,155.56,155.55,0.2]
[1751326288699,146.62648471,155.55,155.53,0.2]
[1751326288901,43.06469204,155.54,155.53,0.2]
[1751326290003,69.06469204,155.54,155.53,0.2]
[1751326290305,69.20685361,155.54,155.53,0.2]
[1751326291713,64.40437951,155.54,155.53,0.2]
[1751326294088,69.20000745,155.54,155.53,0.2]
[1751326294502,64.40437951,155.54,155.53,0.2]
[1751326309741,73.95853752,155.54,155.53,0.2]
[1751326310027,69.19350886,155.54,155.53,0.2]
[1751326311831,67.48187539,155.54,155.53,0.2]
[1751326313604,41.50187539,155.54,155.53,0.2]
[1751326313808,67.48187539,155.54,155.53,0.2]
[1751326317122,6.85611243,155.53,155.52,0.2]
[1751326317341,26.42648471,155.51,155.5,0.2]
[1751326317526,56.26368672,155.51,155.5,0.2]
[1751326317830,57.98403875,155.51,155.5,0.2]
[1751326319311,64.41449338,155.51,155.5,0.2]
[1751326320433,59.64074616,155.51,155.5,0.2]
[1751326320638,64.41449338,155.51,155.5,0.2]
[1751326322544,69.21791834,155.51,155.5,0.2]
[1751326323249,64.41449338,155.51,155.5,0.2]
[1751326323421,69.21787062,155.51,155.5,0.2]
[1751326326639,11.20388765,155.52,155.5,0.2]
[1751326326830,25.98,155.51,155.5,0.2]
[1751326328250,11.20388765,155.52,155.5,0.2]
[1751326328444,25.98,155.51,155.5,0.2]
[1751326328657,32.41045463,155.51,155.5,0.2]
[1751326334059,37.46852499,155.51,155.5,0.2]
[1751326334249,38.27233181,155.51,155.5,0.2]
[1751326335264,37.46852499,155.51,155.5,0.2]
[1751326335566,25.98,155.51,155.5,0.2]
[1751326336763,11.20391464,155.52,155.5,0.2]
[1751326336971,25.98,155.51,155.5,0.2]
[1751326338250,6.43016742,155.52,155.5,0.2]
[1751326338650,10.67704119,155.53,155.51,4.77374722]
[1751326338651,4.81526737,155.53,155.51,4.77374722]
[1751326338872,25.98,155.53,155.52,18.64964886]
[1751326339249,32.42950898,155.54,155.52,18.64964886]
[1751326339448,25.98,155.53,155.52,18.64964886]
[1751326340864,32.40962772,155.53,155.52,18.64964886]
[1751326341360,32.40962772,155.53,155.5,4.97374722]
[1751326341361,43.08393707,155.53,155.5,0.2]
[1751326341571,4.77374722,155.51,155.5,0.2]
[1751326341744,30.75374722,155.51,155.5,0.2]
[1751326342650,37.18420185,155.51,155.5,0.2]
[1751326343767,42.4232325,155.51,155.5,0.2]
[1751326343971,43.22703932,155.51,155.5,0.2]
[1751326346374,37.50732371,155.51,155.5,0.2]
[1751326346576,42.4232325,155.51,155.5,0.2]
[1751326346879,42.28107093,155.51,155.5,0.2]
[1751326347255,37.50732371,155.51,155.5,0.2]
[1751326347456,42.28107093,155.51,155.5,0.2]
[1751326350170,6.43045463,155.51,155.5,0.2]
[1751326350373,152.63013605,155.52,155.5,18.84964886]
[1751326350566,26.0,155.51,155.5,23.62339608]
[1751326350879,150.4879887,155.52,155.5,23.62339608]
[1751326350880,176.4879887,155.52,155.5,23.62339608]
[1751326351078,182.91814565,155.52,155.5,18.84964886]
[1751326351795,176.4879887,155.52,155.5,18.84964886]
[1751326352303,150.4879887,155.52,155.5,18.84964886]
[1751326352472,26.0,155.51,155.5,18.84964886]
[1751326353196,26.0,155.51,155.5,23.62339608]
[1751326354294,176.4879887,155.52,155.5,23.62339608]
[1751326354494,176.4879887,155.52,155.5,18.84964886]
[1751326354676,182.91806201,155.52,155.5,18.84964886]
[1751326355492,156.91806201,155.52,155.5,18.84964886]
[1751326355689,26.0,155.51,155.5,18.84964886]
[1751326360722,32.43045463,155.51,155.5,18.84964886]
[1751326361021,26.0,155.51,155.5,0.2]
[1751326363504,38.00800867,155.51,155.5,0.2]
[1751326365012,38.29233181,155.51,155.5,0.2]
[1751326367324,43.2483206,155.51,155.5,0.2]
[1751326371919,38.47457338,155.51,155.5,0.2]
[1751326372107,12.15017024,155.51,155.5,0.2]
[1751326372427,32.45045463,155.51,155.5,0.2]
[1751326373533,6.43045463,155.51,155.5,0.2]
[1751326373734,32.45045463,155.51,155.5,0.2]
[1751326376135,6.43045463,155.51,155.5,0.2]
[1751326376316,32.45045463,155.51,155.5,0.2]
[1751326380256,10.91820214,155.52,155.5,0.2]
[1751326380624,26.0,155.51,155.5,0.2]
[1751326381451,10.91820214,155.52,155.5,0.2]
[1751326381655,26.0,155.51,155.5,0.2]
[1751326381842,10.91820214,155.52,155.5,0.2]
[1751326382052,26.0,155.51,155.5,0.2]
[1751326385655,0.2,155.56,155.55,23.56555765]
[1751326385830,0.2,155.59,155.56,18.64964886]
[1751326386029,0.2,155.59,155.58,23.42339608]
[1751326390155,0.2,155.59,155.58,29.85095746]
[1751326391246,0.2,155.59,155.58,23.42339608]
[1751326392953,0.2,155.59,155.58,29.85095746]
[1751326393644,0.2,155.59,155.58,23.42339608]
[1751326394242,0.2,155.59,155.58,29.85095746]
[1751326396472,0.2,155.59,155.58,25.07721024]
[1751326396668,0.2,155.59,155.58,23.42339608]
[1751326397670,0.2,155.59,155.58,29.85095746]
[1751326400666,0.2,155.59,155.58,18.64964886]
[1751326400871,0.2,155.59,155.58,23.42339608]
[1751326401584,0.2,155.59,155.58,29.85095746]
[1751326409197,4.25936181,155.61,155.59,18.64964886]
[1751326409392,4.25936181,155.61,155.6,23.42339608]
[1751326410899,4.25936181,155.61,155.6,29.85013129]
[1751326411200,4.25936181,155.61,155.6,23.42339608]
[1751326411792,4.25936181,155.61,155.6,29.85013129]
[1751326412186,4.25936181,155.61,155.6,23.42339608]
[1751326415793,4.25936181,155.61,155.6,18.64964886]
[1751326415997,10.68568402,155.61,155.6,18.64964886]
[1751326417485,4.25936181,155.61,155.6,18.64964886]
[1751326417693,10.68568402,155.61,155.6,18.64964886]
[1751326421525,4.25936181,155.61,155.6,18.64964886]
[1751326424826,16.54704465,155.61,155.6,18.64964886]
[1751326424998,16.68920622,155.61,155.6,18.64964886]
[1751326426920,16.68920622,155.61,155.56,0.1]
[1751326426921,0.28432314,155.59,155.56,0.1]
[1751326427229,4.77374722,155.57,155.56,18.74964886]
[1751326429313,11.20172176,155.57,155.56,18.74964886]
[1751326434543,4.77374722,155.57,155.56,18.74964886]
[1751326434943,11.20172176,155.57,155.56,18.74964886]
[1751326438148,37.98486993,155.58,155.56,18.74964886]
[1751326442841,26.78344517,155.58,155.56,18.74964886]
[1751326443152,25.98,155.58,155.56,18.74964886]
[1751326445257,12.00441557,155.59,155.56,18.74964886]
[1751326445458,25.98,155.58,155.56,18.74964886]
[1751326446034,4.25936181,155.61,155.58,18.64964886]
[1751326446252,4.25936181,155.61,155.6,23.42339608]
[1751326447875,41.78375438,155.61,155.6,18.64964886]
[1751326453418,37.01000716,155.61,155.6,18.64964886]
[1751326454226,10.97000716,155.61,155.6,18.64964886]
[1751326454529,37.01000716,155.61,155.6,18.64964886]
[1751326455317,41.78375438,155.61,155.6,18.64964886]
[1751326460240,41.92591595,155.61,155.6,18.64964886]
[1751326460537,41.92591595,155.61,155.58,18.64964886]
[1751326460538,172.62648471,155.6,155.58,18.64964886]
[1751326460729,31.73930232,155.59,155.58,18.64964886]
[1751326461743,38.16645059,155.59,155.58,18.64964886]
[1751326466142,33.39270337,155.59,155.58,18.64964886]
[1751326466346,38.16645059,155.59,155.58,18.64964886]
[1751326471443,33.2505418,155.59,155.58,18.64964886]
[1751326471649,38.30861216,155.59,155.58,18.64964886]
[1751326472945,33.53486494,155.59,155.58,18.64964886]
[1751326473126,38.30861216,155.59,155.58,18.64964886]
[1751326474854,38.30861216,155.59,155.56,0.1]
[1751326474855,146.48432314,155.58,155.56,0.1]
[1751326475029,36.8371491,155.57,155.56,0.1]
[1751326475230,41.08739953,155.57,155.56,0.1]
[1751326477327,47.51537407,155.57,155.56,0.1]
[1751326477645,43.26512364,155.57,155.56,0.1]
[1751326480457,44.80612364,155.57,155.56,0.1]
[1751326481540,49.82454026,155.57,155.56,0.1]
[1751326485251,44.80612364,155.57,155.56,0.1]
[1751326487058,49.89763326,155.57,155.56,0.1]
[1751326488149,44.80612364,155.57,155.56,0.1]
[1751326497764,44.80612364,155.57,155.52,0.1]
[1751326497765,0.14216157,155.53,155.52,0.1]
[1751326497958,32.00393539,155.53,155.52,0.1]
[1751326498279,36.77768261,155.53,155.52,0.1]
[1751326498774,41.57555975,155.53,155.5,0.2]
[1751326498946,31.20023193,155.51,155.5,0.2]
[1751326499152,58.02403875,155.51,155.5,0.2]
[1751326500357,0.42648471,155.5,155.48,0.1]
[1751326500588,0.42648471,155.5,155.46,0.2]
[1751326500589,32.02414214,155.49,155.46,0.2]
[1751326500752,5.20023193,155.48,155.46,0.2]
[1751326501657,0.42648471,155.48,155.46,0.2]
[1751326501883,31.20023193,155.48,155.44,18.74964886]
[1751326502178,0.28432314,155.45,155.44,0.1]
[1751326502348,27.12844021,155.45,155.44,0.1]
[1751326503568,26.84411707,155.45,155.44,0.1]
[1751326503764,26.04,155.45,155.44,0.1]
[1751326505268,37.24668385,155.45,155.44,0.1]
[1751326505883,30.81374722,155.45,155.44,0.1]
[1751326506185,26.04,155.45,155.44,0.1]
[1751326506361,37.53100699,155.45,155.44,0.1]
[1751326506564,37.67316856,155.45,155.44,0.1]
[1751326511972,26.28432314,155.45,155.44,0.1]
[1751326512183,63.53100699,155.45,155.44,0.1]
[1751326512392,63.67316856,155.45,155.44,0.1]
[1751326513576,26.04,155.45,155.44,0.1]
[1751326513969,157.40613143,155.47,155.44,0.1]
[1751326514169,26.04,155.46,155.44,0.1]
[1751326514372,157.40613143,155.47,155.44,0.1]
[1751326514676,26.04,155.46,155.44,0.1]
[1751326516571,32.47253846,155.46,155.44,0.1]
[1751326517700,33.27660381,155.46,155.44,0.1]
[1751326518167,26.04,155.45,155.44,0.1]
[1751326519394,32.47293663,155.45,155.44,0.1]
[1751326519583,32.75725977,155.45,155.44,0.1]
[1751326525581,37.53100699,155.45,155.44,0.1]
[1751326526902,37.67316856,155.45,155.44,0.1]
[1751326529520,42.47124204,155.45,155.44,0.1]
[1751326530312,37.67316856,155.45,155.44,0.1]
[1751326537413,42.47206078,155.45,155.44,0.1]
[1751326540315,42.67206078,155.45,155.44,0.1]
[1751326542020,47.445808,155.45,155.44,0.1]
[1751326542622,0.42648471,155.44,155.43,0.1]
[1751326542819,15.57704018,155.44,155.43,0.1]
[1751326544020,22.01039066,155.44,155.43,0.1]
[1751326544913,12.32073465,155.44,155.43,0.1]
[1751326545115,43.09448187,155.44,155.43,0.1]
[1751326545420,11.40683587,155.45,155.43,0.1]
[1751326545602,26.04,155.44,155.43,0.1]
[1751326547419,11.40683587,155.45,155.43,0.1]
[1751326547622,26.04,155.44,155.43,0.1]
[1751326548218,11.40683587,155.45,155.43,0.1]
[1751326548519,0.48432314,155.45,155.43,18.74964886]
[1751326548704,26.04,155.44,155.43,18.74964886]
[1751326551419,32.47335048,155.44,155.43,18.74964886]
[1751326553749,6.63316841,155.45,155.43,18.74964886]
[1751326554037,32.65316841,155.45,155.43,18.74964886]
[1751326555636,6.63316841,155.45,155.43,18.74964886]
[1751326555818,32.67316841,155.45,155.43,18.74964886]
[1751326556635,37.44691563,155.45,155.43,18.74964886]
[1751326557138,0.2,155.44,155.43,18.74964886]
[1751326558741,6.63335048,155.44,155.43,18.74964886]
[1751326562123,32.65335048,155.44,155.43,18.74964886]
[1751326564625,38.65775122,155.44,155.43,0.1]
[1751326565151,32.93767362,155.44,155.43,0.1]
[1751326565374,37.71142084,155.44,155.43,0.1]
[1751326565947,42.62732963,155.44,155.43,0.1]
[1751326566551,47.43893565,155.44,155.43,0.1]
[1751326566880,0.28432314,155.43,155.4,0.1]
[1751326567061,4.91590879,155.41,155.4,0.1]
[1751326567375,10.85162106,155.41,155.4,0.1]
[1751326568452,17.28621342,155.41,155.4,0.1]
[1751326569572,17.57053656,155.41,155.4,0.1]
[1751326569768,22.3836819,155.41,155.4,0.1]
[1751326574375,10.74885761,155.41,155.4,0.1]
[1751326574582,38.41030463,155.41,155.4,0.1]
[1751326574792,43.46837499,155.41,155.4,0.1]
[1751326574990,43.48837499,155.41,155.4,0.1]
[1751326576361,37.05378263,155.41,155.4,0.1]
[1751326577677,32.28003541,155.41,155.4,0.1]
[1751326578962,38.71462777,155.41,155.4,0.1]
[1751326579987,43.48837499,155.41,155.4,0.1]
[1751326580494,5.93571227,155.41,155.4,0.1]
[1751326580675,31.99571227,155.41,155.4,0.1]
[1751326580874,43.20405185,155.41,155.4,0.1]
[1751326581785,36.76945949,155.41,155.4,0.1]
[1751326581969,31.99571227,155.41,155.4,0.1]
[1751326582289,38.43030463,155.41,155.4,0.1]
[1751326582490,12.37030463,155.41,155.4,0.1]
[1751326582787,31.99571227,155.41,155.4,0.1]
[1751326583286,26.06,155.41,155.4,0.1]
[1751326584888,32.49459236,155.41,155.4,0.1]
[1751326586890,26.06,155.41,155.4,0.1]
[1751326587678,6.43435604,155.42,155.4,0.1]
[1751326587888,26.04,155.41,155.4,23.52339608]
[1751326588083,31.09807036,155.41,155.4,0.1]
[1751326588272,31.9023944,155.41,155.4,0.1]
[1751326589387,37.53266272,155.41,155.4,0.1]
[1751326589584,37.26833958,155.41,155.4,0.1]
[1751326591525,30.83374722,155.41,155.4,0.1]
[1751326591670,26.06,155.41,155.4,0.1]
[1751326592382,26.08,155.41,155.4,0.1]
[1751326593576,32.51459236,155.41,155.4,0.1]
[1751326593985,37.28833958,155.41,155.4,0.1]
[1751326594575,37.57266272,155.41,155.4,0.1]
[1751326602003,32.7989155,155.41,155.4,0.1]
[1751326602209,37.57266272,155.41,155.4,0.1]
[1751326607414,63.71482429,155.41,155.4,0.1]
[1751326607623,68.52836159,155.41,155.4,0.1]
[1751326615228,42.52836159,155.41,155.4,0.1]
[1751326620329,11.67461437,155.41,155.4,0.1]
[1751326620524,42.52836159,155.41,155.4,0.1]
[1751326620727,43.33268563,155.41,155.4,0.1]
[1751326625620,68.52836159,155.41,155.4,0.1]
[1751326625820,42.44836159,155.41,155.4,0.1]
[1751326626021,68.58836159,155.41,155.4,0.1]
[1751326627645,68.56836159,155.41,155.4,0.1]
[1751326628429,42.44836159,155.41,155.4,0.1]
[1751326628626,42.56836159,155.41,155.4,0.1]
[1751326628939,0.42648471,155.38,155.37,0.1]
[1751326629123,36.93824857,155.38,155.37,0.1]
[1751326629626,43.37408329,155.38,155.37,0.1]
[1751326630126,48.14783051,155.38,155.37,0.1]
[1751326631926,48.14783051,155.38,155.36,0.1]
[1751326632126,14.78751645,155.37,155.36,0.1]
[1751326633145,21.2237654,155.37,155.36,0.1]
[1751326634852,11.63648088,155.37,155.36,0.1]
[1751326635347,16.4102281,155.37,155.36,0.1]
[1751326636327,11.63648088,155.37,155.36,0.1]
[1751326636936,37.63648088,155.37,155.36,0.1]
[1751326637152,6.72057209,155.37,155.36,0.1]
[1751326637357,11.20999617,155.37,155.36,0.1]
[1751326637730,63.63431931,155.37,155.36,0.1]
[1751326637931,63.34999617,155.37,155.36,0.1]
[1751326638346,0.80447934,155.38,155.36,0.1]
[1751326638347,6.43593206,155.38,155.36,0.1]